bitfinex-derivatives/quotes_SOLF0:USTF0_20250730
["timestamp","ask_amount","ask_price","bid_price","bid_amount"]
[1753838707597,5.5759,179.37,179.36,3.14]
[1753838707799,124.03,179.43,179.31,3.14]
[1753838708000,4.51025934,179.42,179.33,3.14]
[1753838708199,5.575,179.41,179.37,3.14]
[1753838708398,5.575,179.41,179.23,120.7]
[1753838708399,0.03,179.39,179.3,4.51025934]
[1753838708597,0.03,179.39,179.31,3.14]
[1753838708792,4.54025934,179.4,179.29,3.14]
[1753838709495,5.5757,179.38,179.36,3.14]
[1753838709703,5.5757,179.38,179.37,3.14]
[1753838711005,5.576,179.37,179.32,5.5772]
[1753838711201,0.03,179.37,179.35,3.14]
[1753838711898,0.03,179.37,179.32,3.14]
[1753838712097,0.03,179.35,179.32,3.14]
[1753838712297,4.51025934,179.36,179.27,3.14]
[1753838712898,2.77274219,179.35,179.27,3.14]
[1753838713391,2.80274219,179.35,179.32,3.14]
[1753838714197,2.77274219,179.35,179.31,5.5777]
[1753838714404,2.77274219,179.35,179.32,3.04]
[1753838714602,2.77274219,179.37,179.32,3.04]
[1753838714901,2.77274219,179.39,179.36,3.04]
[1753838715301,8.34814219,179.39,179.36,3.04]
[1753838715700,2.77274219,179.39,179.36,3.04]
[1753838716098,2.77274219,179.39,179.37,3.04]
[1753838716296,2.77274219,179.39,179.38,3.04]
[1753838716900,4.51569093,179.45,179.38,3.04]
[1753838717398,5.5738,179.44,179.4,5.5749]
[1753838717700,374.78,179.46,179.38,3.04]
[1753838718001,124.0,179.46,179.38,3.04]
[1753838719395,124.0,179.46,179.42,3.04]
[1753838719706,120.72,179.47,179.42,3.04]
[1753838720400,0.04,179.51,179.42,3.04]
[1753838720801,5.5728,179.48,179.44,5.5736]
[1753838721203,5.5728,179.48,179.46,3.04]
[1753838721399,5.5728,179.48,179.47,3.04]
[1753838722704,5.5722,179.49,179.47,3.04]
[1753838723100,0.04,179.49,179.47,3.04]
[1753838723498,4.51569093,179.48,179.44,3.04]
[1753838723702,0.04,179.47,179.44,3.04]
[1753838723900,5.5728,179.47,179.46,3.04]
[1753838724302,128.51569093,179.5,179.4,4.51569093]
[1753838724508,5.5734,179.46,179.42,3.04]
[1753838725107,5.5735,179.45,179.42,3.04]
[1753838725408,4.55569093,179.48,179.42,3.04]
[1753838725602,0.04,179.47,179.42,3.04]
[1753838725806,0.04,179.45,179.42,3.04]
[1753838726003,8.71446962,179.46,179.42,3.04]
[1753838726004,0.04,179.44,179.42,3.04]
[1753838726204,5.574,179.43,179.42,3.04]
[1753838726412,4.55569093,179.46,179.42,3.04]
[1753838726601,4.55569093,179.46,179.36,3.04]
[1753838726802,120.7,179.47,179.41,3.04]
[1753838727201,8.72153547,179.46,179.41,3.04]
[1753838727400,5.5738,179.44,179.41,3.04]
[1753838727608,4.51569093,179.46,179.41,3.04]
[1753838727809,120.7,179.47,179.41,3.04]
[1753838728315,120.7,179.47,179.38,3.04]
[1753838728609,8.72574439,179.46,179.38,3.04]
[1753838728809,5.574,179.44,179.4,3.04]
[1753838729013,0.04,179.44,179.41,3.04]
[1753838729211,4.51569093,179.46,179.35,4.51569093]
[1753838729411,9.82459855,179.45,179.43,3.04]
[1753838729605,5.5734,179.45,179.44,3.04]
[1753838729807,9.78460653,179.45,179.44,3.04]
[1753838730206,5.5738,179.44,179.42,3.04]
[1753838730706,0.04,179.44,179.42,3.04]
[1753838730913,0.04,179.42,179.4,3.04]
[1753838731112,0.04,179.41,179.34,3.04]
[1753838731307,4.51569093,179.4,179.34,3.04]
[1753838731507,5.5759,179.38,179.34,3.04]
[1753838732213,4.55569093,179.4,179.35,3.04]
[1753838732414,4.21397899,179.39,179.35,3.04]
[1753838732617,4.55569093,179.4,179.35,3.04]
[1753838732910,4.21397899,179.39,179.35,3.04]
[1753838733110,120.7,179.41,179.36,3.04]
[1753838733309,4.21526188,179.4,179.36,3.04]
[1753838733509,4.21526188,179.39,179.36,3.04]
[1753838733712,120.7,179.41,179.36,3.04]
[1753838733910,5.5753,179.39,179.36,3.04]
[1753838734514,5.5753,179.39,179.36,8.6162]
[1753838734707,120.7,179.41,179.37,3.04]
[1753838735008,4.21658783,179.4,179.37,3.04]
[1753838735209,4.21658783,179.39,179.34,3.04]
[1753838735408,120.7,179.41,179.34,3.04]
[1753838735709,4.21825369,179.4,179.35,4.51569093]
[1753838736012,4.64625604,179.45,179.38,3.04]
[1753838736209,4.21837473,179.44,179.38,3.04]
[1753838736414,4.21837473,179.43,179.38,3.04]
[1753838736610,5.5735,179.45,179.42,3.04]
[1753838736915,4.22098068,179.44,179.42,3.04]
[1753838737117,5.5735,179.45,179.42,3.04]
[1753838737317,4.22079687,179.44,179.42,3.04]
[1753838737517,120.7,179.47,179.42,3.04]
[1753838737814,4.21976597,179.46,179.42,3.04]
[1753838738020,4.21976597,179.45,179.42,3.04]
[1753838738206,5.5732,179.46,179.44,3.04]
[1753838738412,4.21977847,179.45,179.44,3.04]
[1753838738914,4.21977847,179.45,179.44,8.6137]
[1753838739215,120.7,179.47,179.41,3.04]
[1753838739411,4.26168745,179.46,179.41,3.04]
[1753838739716,4.26162175,179.45,179.43,3.04]
[1753838740016,5.5735,179.45,179.42,3.04]
[1753838741006,5.5735,179.45,179.41,5.5744]
[1753838741214,5.5737,179.44,179.43,3.04]
[1753838741712,0.03,179.45,179.41,3.04]
[1753838741919,0.03,179.43,179.37,3.04]
[1753838742721,0.03,179.41,179.38,3.04]
[1753838742916,120.68,179.42,179.39,3.04]
[1753838743313,120.68,179.46,179.39,3.04]
[1753838743512,4.22707727,179.45,179.39,3.04]
[1753838743716,120.68,179.46,179.39,3.04]
[1753838744017,120.68,179.46,179.44,3.06]
[1753838744218,120.68,179.46,179.4,4.51168974]
[1753838744421,4.22659004,179.45,179.43,3.06]
[1753838744610,5.5737,179.44,179.4,5.5747]
[1753838744814,5.5737,179.44,179.38,4.51168974]
[1753838745025,5.5737,179.44,179.39,3.06]
[1753838746316,5.5737,179.44,179.41,5.5747]
[1753838746716,5.5735,179.45,179.44,3.06]
[1753838746917,120.68,179.46,179.44,3.06]
[1753838747221,126.2532,179.46,179.45,3.06]
[1753838747412,130.48035477,179.46,179.45,3.06]
[1753838748320,9.80035477,179.46,179.45,3.06]
[1753838748625,4.22715477,179.46,179.45,3.06]
[1753838748926,5.5727,179.48,179.45,3.06]
[1753838749122,4.22754421,179.47,179.45,5.5734]
[1753838749324,5.5727,179.48,179.45,5.5734]
[1753838749533,4.22741278,179.47,179.45,5.5734]
[1753838749825,5.5727,179.48,179.47,3.06]
[1753838750029,9.8002083,179.48,179.47,3.06]
[1753838751026,4.2275083,179.48,179.47,3.06]
[1753838752329,9.8000083,179.48,179.47,3.06]
[1753838752529,4.2275083,179.48,179.47,3.06]
[1753838753631,4.51168974,179.54,179.47,3.06]
[1753838753933,4.68625604,179.55,179.49,5.5721]
[1753838753934,120.68,179.52,179.49,5.5721]
[1753838754127,4.23669275,179.51,179.5,3.06]
[1753838755327,9.80829275,179.51,179.5,3.06]
[1753838756227,4.23669275,179.51,179.5,3.06]
[1753838756627,120.68,179.52,179.5,3.06]
[1753838757340,120.68,179.52,179.51,3.06]
[1753838757541,124.91609203,179.52,179.51,3.06]
[1753838760440,130.48739203,179.52,179.51,3.06]
[1753838760640,124.95609203,179.52,179.49,3.06]
[1753838760841,4.27609203,179.51,179.49,3.06]
[1753838761043,4.23609203,179.5,179.49,3.06]
[1753838761541,5.6118,179.51,179.49,3.06]
[1753838761734,0.04,179.51,179.48,3.06]
[1753838762139,4.24031581,179.5,179.45,3.06]
[1753838762335,5.5719,179.5,179.45,3.06]
[1753838762546,123.44750591,179.52,179.45,3.06]
[1753838762746,4.23997279,179.51,179.47,5.5728]
[1753838762947,123.44750591,179.52,179.45,3.06]
[1753838763142,4.24017794,179.51,179.45,3.06]
[1753838763340,123.48750591,179.52,179.45,3.06]
[1753838763650,5.5719,179.5,179.47,3.06]
[1753838764548,5.5722,179.49,179.45,3.06]
[1753838764848,123.44750591,179.52,179.45,3.06]
[1753838765143,0.04,179.48,179.46,3.06]
[1753838765348,120.64,179.48,179.44,3.06]
[1753838765649,5.573,179.47,179.44,3.06]
[1753838766153,123.44750591,179.48,179.41,3.06]
[1753838766345,5.5731,179.46,179.42,5.5743]
[1753838766546,5.5731,179.46,179.44,3.06]
[1753838766847,5.5731,179.46,179.45,3.06]
[1753838767849,0.04,179.46,179.44,3.06]
[1753838768644,2.80750591,179.46,179.44,3.06]
[1753838768842,120.68,179.45,179.42,3.06]
[1753838769046,2.80750591,179.44,179.37,3.06]
[1753838769245,5.5743,179.43,179.39,5.5751]
[1753838769445,5.5743,179.43,179.4,3.06]
[1753838770753,5.5743,179.43,179.41,3.06]
[1753838772052,120.64,179.45,179.41,3.06]
[1753838772549,120.64,179.45,179.42,5.5743]
[1753838772852,120.64,179.45,179.43,3.06]
[1753838773645,126.2135,179.45,179.43,3.06]
[1753838774354,120.64,179.45,179.43,8.634]
[1753838774557,120.64,179.45,179.44,3.14]
[1753838774854,0.04,179.5,179.44,3.14]
[1753838775155,4.24164854,179.49,179.44,3.14]
[1753838775349,123.40750591,179.5,179.44,3.14]
[1753838775547,123.40750591,179.5,179.48,3.14]
[1753838776052,4.64625604,179.54,179.48,3.14]
[1753838776253,0.04,179.51,179.49,3.14]
[1753838777150,0.04,179.5,179.47,3.14]
[1753838777354,2.76750591,179.49,179.4,2.76750591]
[1753838777657,4.28307182,179.48,179.46,3.14]
[1753838777955,0.04,179.48,179.46,3.14]
[1753838778455,5.613,179.47,179.43,3.14]
[1753838778646,0.04,179.47,179.43,3.14]
[1753838779055,126.80750591,179.49,179.43,3.14]
[1753838779257,4.24469573,179.48,179.43,3.14]
[1753838779557,126.80750591,179.49,179.43,5.574]
[1753838779755,4.24509917,179.48,179.44,3.14]
[1753838779954,5.5726,179.48,179.44,3.14]
[1753838781052,132.33980591,179.49,179.45,3.14]
[1753838781256,4.24679627,179.48,179.45,3.14]
[1753838781454,120.66,179.5,179.45,3.14]
[1753838781652,120.66,179.5,179.45,5.5732]
[1753838781653,9.81970506,179.49,179.45,5.5732]
[1753838781851,5.5722,179.49,179.46,3.14]
[1753838782155,5.5725,179.48,179.47,3.14]
[1753838782351,0.04,179.48,179.41,3.14]
[1753838782956,5.573,179.47,179.42,5.5743]
[1753838783154,5.573,179.47,179.43,3.14]
[1753838783855,0.04,179.48,179.43,3.14]
[1753838784157,2.76750591,179.49,179.43,3.14]
[1753838784158,4.28747542,179.47,179.43,3.14]
[1753838784462,9.8208393,179.46,179.43,3.14]
[1753838784655,5.5733,179.46,179.43,3.14]
[1753838784952,0.04,179.47,179.41,3.14]
[1753838785160,2.76750591,179.43,179.4,3.14]
[1753838785357,2.76750591,179.41,179.37,3.14]
[1753838785754,2.80750591,179.41,179.38,3.14]
[1753838785959,2.80750591,179.41,179.39,3.14]
[1753838786460,5.575,179.4,179.39,3.14]
[1753838787356,8.34220591,179.41,179.39,3.14]
[1753838787556,2.76750591,179.41,179.4,3.14]
[1753838787756,0.04,179.4,179.38,3.14]
[1753838787959,2.80750591,179.39,179.38,3.14]
[1753838788660,8.38290591,179.39,179.38,3.14]
[1753838789958,8.34290591,179.39,179.38,3.14]
[1753838790458,2.76750591,179.39,179.38,3.14]
[1753838790662,2.76750591,179.4,179.38,3.14]
[1753838790863,2.76750591,179.4,179.33,3.14]
[1753838791263,5.5753,179.39,179.35,3.14]
[1753838791966,8.34260591,179.4,179.36,3.14]
[1753838792563,5.5753,179.39,179.36,3.14]
[1753838793357,120.68,179.42,179.36,3.14]
[1753838793358,2.80750591,179.38,179.36,3.14]
[1753838793565,120.7,179.37,179.29,3.14]
[1753838793867,2.76750591,179.33,179.29,3.14]
[1753838794261,2.80750591,179.33,179.29,3.14]
[1753838794471,2.76750591,179.33,179.26,2.76750591]
[1753838794676,2.76750591,179.33,179.31,3.14]
[1753838795168,2.76750591,179.33,179.32,3.14]
[1753838795670,8.34470591,179.33,179.32,3.14]
[1753838795865,2.76750591,179.33,179.27,3.14]
[1753838797066,2.80750591,179.31,179.28,3.14]
[1753838797668,5.5786,179.29,179.28,3.14]
[1753838797869,2.80750591,179.31,179.29,3.14]
[1753838798070,2.76750591,179.33,179.3,3.14]
[1753838798272,5.5775,179.32,179.3,3.14]
[1753838798974,5.5778,179.31,179.27,3.14]
[1753838799369,2.80750591,179.31,179.27,3.14]
[1753838799569,5.5782,179.3,179.27,3.14]
[1753838799768,2.76750591,179.31,179.25,3.14]
[1753838800073,2.76750591,179.29,179.25,3.14]
[1753838800274,2.76750591,179.29,179.22,3.14]
[1753838802574,2.76750591,179.27,179.22,3.14]
[1753838803574,2.76750591,179.29,179.22,3.14]
[1753838803874,5.5791,179.27,179.22,3.14]
[1753838804069,2.76750591,179.27,179.22,3.14]
[1753838804265,5.5801,179.24,179.22,3.14]
[1753838804966,5.5803,179.23,179.19,3.06]
[1753838805172,2.76750591,179.25,179.19,3.06]
[1753838805373,2.76750591,179.23,179.19,3.06]
[1753838806075,2.76750591,179.23,179.18,3.06]
[1753838806280,0.04,179.22,179.18,3.06]
[1753838806579,8.34780591,179.23,179.18,5.5817]
[1753838806779,8.34780591,179.23,179.19,3.06]
[1753838807481,5.5803,179.24,179.19,8.6413]
[1753838807668,2.76750591,179.25,179.18,2.76750591]
[1753838807972,2.76750591,179.27,179.19,3.06]
[1753838808177,5.58,179.24,179.21,3.06]
[1753838809472,5.5804,179.23,179.21,3.06]
[1753838810272,5.58,179.24,179.21,3.06]
[1753838810673,2.76750591,179.25,179.21,3.06]
[1753838810873,2.76750591,179.27,179.23,3.06]
[1753838812278,8.34660591,179.27,179.23,3.06]
[1753838813282,0.04,179.26,179.24,3.06]
[1753838814474,5.5799,179.25,179.24,3.06]
[1753838816576,5.5799,179.25,179.21,5.5808]
[1753838816577,5.5794,179.26,179.25,3.06]
[1753838816776,0.04,179.29,179.25,3.06]
[1753838816976,2.76750591,179.3,179.25,3.06]
[1753838817179,2.76750591,179.31,179.26,5.5791]
[1753838817480,2.76750591,179.31,179.27,3.06]
[1753838817678,2.76750591,179.33,179.27,8.6389]
[1753838817982,2.76750591,179.33,179.28,3.06]
[1753838818378,5.5776,179.32,179.28,8.6385]
[1753838818578,2.76750591,179.33,179.29,3.06]
[1753838818778,123.46750591,179.35,179.29,3.06]
[1753838819682,5.5776,179.32,179.29,8.6383]
[1753838819881,5.5776,179.32,179.27,2.76750591]
[1753838820085,5.5776,179.32,179.28,3.06]
[1753838820283,5.5771,179.34,179.29,3.06]
[1753838820686,2.76750591,179.33,179.29,3.06]
[1753838820984,5.5783,179.3,179.26,3.06]
[1753838821386,2.80750591,179.29,179.27,3.06]
[1753838821578,2.80750591,179.29,179.21,2.76750591]
[1753838821579,2.76750591,179.29,179.26,3.06]
[1753838821779,0.04,179.28,179.26,3.06]
[1753838821981,5.579,179.27,179.26,3.06]
[1753838822274,8.34650591,179.27,179.26,3.06]
[1753838822879,0.04,179.26,179.19,2.76750591]
[1753838823081,2.76750591,179.27,179.2,3.06]
[1753838823286,8.34670591,179.27,179.22,5.5803]
[1753838823484,8.34670591,179.27,179.23,3.06]
[1753838823687,2.76750591,179.27,179.23,3.06]
[1753838824184,0.04,179.26,179.23,3.06]
[1753838824380,0.04,179.26,179.24,3.06]
[1753838824580,5.5796,179.25,179.24,3.06]
[1753838826091,5.6194,179.26,179.24,3.06]
[1753838826292,5.5794,179.26,179.21,5.5809]
[1753838826492,5.5794,179.26,179.25,3.06]
[1753838828196,2.76750591,179.29,179.25,3.06]
[1753838828788,2.80750591,179.29,179.25,3.06]
[1753838829191,2.80750591,179.29,179.21,2.76750591]
[1753838829394,2.76750591,179.25,179.23,3.06]
[1753838829591,2.80750591,179.25,179.23,3.06]
[1753838829791,8.34720591,179.25,179.18,3.06]
[1753838830192,8.34720591,179.25,179.2,5.581]
[1753838830388,8.34720591,179.25,179.21,3.06]
[1753838831190,2.76750591,179.25,179.17,2.76750591]
[1753838831397,2.76750591,179.27,179.22,3.06]
[1753838831891,5.5794,179.26,179.22,5.5803]
[1753838832194,2.76750591,179.29,179.23,3.06]
[1753838832395,2.76750591,179.29,179.24,3.06]
[1753838832396,5.5792,179.27,179.24,3.06]
[1753838832696,2.76750591,179.29,179.24,3.06]
[1753838832898,4.21953857,179.28,179.27,3.06]
[1753838833598,5.5783,179.3,179.27,3.06]
[1753838833894,9.79968539,179.29,179.27,3.06]
[1753838834097,7.02873361,179.28,179.25,3.2]
[1753838834396,2.76750591,179.26,179.23,3.2]
[1753838834998,2.76750591,179.26,179.24,3.2]
[1753838835198,2.76750591,179.26,179.25,3.2]
[1753838835594,2.76750591,179.28,179.25,3.2]
[1753838835794,4.22531034,179.27,179.2,3.2]
[1753838835997,2.76750591,179.28,179.2,3.2]
[1753838836302,5.5794,179.26,179.22,5.5805]
[1753838836596,0.04,179.27,179.23,3.2]
[1753838836795,0.04,179.27,179.2,3.2]
[1753838837193,5.5799,179.25,179.2,3.2]
[1753838837400,5.5799,179.25,179.19,2.76750591]
[1753838837401,5.5799,179.25,179.22,3.2]
[1753838838298,5.58,179.24,179.22,3.2]
[1753838838496,4.65100379,179.3,179.22,3.2]
[1753838838697,4.23739613,179.29,179.24,3.2]
[1753838838897,9.81599613,179.29,179.25,5.5794]
[1753838839098,4.23739613,179.28,179.26,3.2]
[1753838839293,9.81609613,179.28,179.26,3.2]
[1753838839499,4.23739613,179.27,179.26,3.2]
[1753838839803,4.23739613,179.27,179.21,3.2]
[1753838840899,9.81649613,179.27,179.24,5.5799]
[1753838841093,5.5791,179.27,179.26,3.2]
[1753838841293,4.24101632,179.27,179.26,3.2]
[1753838842700,4.24101632,179.27,179.24,3.2]
[1753838842900,4.28417963,179.26,179.24,3.2]
[1753838843205,5.579,179.27,179.25,3.2]
[1753838843600,0.04,179.27,179.25,3.2]
[1753838844206,2.76750591,179.28,179.26,3.2]
[1753838844402,4.24479785,179.27,179.26,3.2]
[1753838845607,9.82379785,179.27,179.26,3.2]
[1753838846603,9.82379785,179.27,179.19,2.76750591]
[1753838846604,0.04,179.25,179.23,3.2]
[1753838846997,9.82520156,179.24,179.23,3.2]
[1753838847198,7.05270747,179.24,179.16,3.2]
[1753838847504,4.24485642,179.23,179.16,3.2]
[1753838847708,2.76750591,179.24,179.18,5.5816]
[1753838847912,4.24485195,179.23,179.19,3.2]
[1753838848103,5.5805,179.23,179.19,3.2]
[1753838848807,5.5806,179.22,179.19,3.2]
[1753838849708,5.5806,179.22,179.2,3.2]
[1753838851310,5.5803,179.23,179.2,3.2]
[1753838854204,5.5806,179.22,179.21,3.2]
[1753838854809,5.6204,179.23,179.21,3.2]
[1753838855109,2.76750591,179.24,179.16,3.2]
[1753838855304,2.80750591,179.24,179.21,3.2]
[1753838855510,2.80750591,179.24,179.22,3.2]
[1753838856006,2.80750591,179.24,179.23,3.2]
[1753838856406,7.05249894,179.24,179.23,3.2]
[1753838856908,7.01249894,179.24,179.23,3.2]
[1753838857413,4.24499303,179.24,179.23,3.2]
[1753838857920,4.24499303,179.24,179.23,8.7803]
[1753838858311,5.5792,179.27,179.23,5.5803]
[1753838858508,4.24351574,179.26,179.25,3.2]
[1753838859912,7.4185097,179.35,179.26,3.2]
[1753838860105,4.24259289,179.34,179.28,3.2]
[1753838860411,4.24259289,179.33,179.32,3.2]
[1753838860614,4.24259289,179.33,179.29,2.76750591]
[1753838860816,4.24259289,179.32,179.29,2.76750591]
[1753838861011,5.5769,179.34,179.3,5.578]
[1753838861212,4.24196148,179.33,179.31,3.2]
[1753838861514,4.24196148,179.32,179.31,3.2]
[1753838862310,5.5769,179.34,179.31,3.2]
[1753838862511,4.24015572,179.33,179.31,3.2]
[1753838862714,5.6172,179.33,179.31,3.2]
[1753838863013,4.24009963,179.32,179.31,3.2]
[1753838863404,4.23955221,179.32,179.31,3.2]
[1753838863608,5.5772,179.33,179.31,3.2]
[1753838863917,5.5769,179.34,179.31,3.2]
[1753838864213,2.76750591,179.35,179.31,3.2]
[1753838864410,4.23748407,179.34,179.32,8.6774]
[1753838864611,2.76750591,179.35,179.33,3.1]
[1753838864812,4.2382781,179.34,179.33,3.1]
[1753838866119,9.8150781,179.34,179.33,3.1]
[1753838866413,9.8550781,179.34,179.33,3.1]
[1753838866816,9.8550781,179.34,179.32,3.1]
[1753838867115,4.2382781,179.33,179.32,3.1]
[1753838867318,5.6168,179.34,179.32,3.1]
[1753838868121,5.6168,179.34,179.3,5.578]
[1753838868122,0.04,179.32,179.3,3.1]
[1753838868317,0.04,179.31,179.3,3.1]
[1753838868510,5.5777,179.32,179.29,3.1]
[1753838869020,2.76750591,179.33,179.29,3.1]
[1753838869319,4.23929347,179.32,179.29,3.1]
[1753838869619,8.34420591,179.35,179.3,5.5779]
[1753838869918,4.23928822,179.34,179.31,3.1]
[1753838870118,4.23928822,179.33,179.32,5.5775]
[1753838870320,5.5765,179.35,179.33,3.1]
[1753838870516,4.23880842,179.34,179.33,3.1]
[1753838871415,2.76750591,179.37,179.33,3.1]
[1753838871620,4.23842336,179.36,179.33,3.1]
[1753838871820,4.23842336,179.35,179.29,3.1]
[1753838872020,2.76750591,179.37,179.29,3.1]
[1753838872223,5.5775,179.32,179.29,3.1]
[1753838872418,0.04,179.32,179.27,3.1]
[1753838873120,2.76750591,179.33,179.27,3.1]
[1753838873321,5.5777,179.32,179.28,5.5785]
[1753838873521,5.5777,179.32,179.29,3.1]
[1753838875022,5.5777,179.32,179.28,5.5785]
[1753838875529,0.04,179.32,179.3,3.1]
[1753838875917,0.04,179.32,179.27,5.579]
[1753838876122,0.04,179.32,179.28,3.1]
[1753838877421,5.578,179.31,179.28,3.1]
[1753838878320,5.5781,179.3,179.28,3.1]
[1753838878522,5.5781,179.3,179.29,3.1]
[1753838882428,4.65100379,179.36,179.29,3.1]
[1753838882629,2.76750591,179.33,179.29,3.1]
[1753838882824,0.04,179.32,179.29,3.1]
[1753838883026,5.5779,179.31,179.29,3.1]
[1753838883230,2.76750591,179.33,179.3,3.1]
[1753838883426,2.76750591,179.37,179.3,3.1]
[1753838883633,5.5763,179.36,179.32,5.5772]
[1753838883827,5.5763,179.36,179.33,3.1]
[1753838884228,5.5765,179.35,179.33,3.1]
[1753838885429,0.04,179.34,179.29,5.5782]
[1753838885630,0.04,179.34,179.32,3.1]
[1753838886330,2.80750591,179.33,179.24,2.76750591]
[1753838886728,2.80750591,179.33,179.31,3.1]
[1753838887335,5.5774,179.32,179.31,3.1]
[1753838888131,8.34470591,179.33,179.31,3.1]
[1753838889231,5.5774,179.32,179.31,3.1]
[1753838890836,8.34460591,179.33,179.31,3.1]
[1753838891433,5.5771,179.33,179.31,3.1]
[1753838891738,5.5774,179.32,179.31,3.1]
[1753838893139,8.34470591,179.33,179.31,3.1]
[1753838893533,2.76750591,179.33,179.3,3.1]
[1753838893738,5.5775,179.32,179.3,3.1]
[1753838894642,8.34470591,179.33,179.3,3.1]
[1753838895145,5.5774,179.32,179.3,3.1]
[1753838898151,2.76750591,179.35,179.3,3.1]
[1753838898443,4.21075971,179.34,179.3,3.1]
[1753838898750,2.76750591,179.37,179.31,3.24]
[1753838899047,4.21210623,179.36,179.31,3.24]
[1753838899241,4.21210623,179.35,179.31,3.24]
[1753838899446,5.5768,179.35,179.32,3.24]
[1753838899949,0.04,179.36,179.32,3.24]
[1753838900146,4.21348453,179.35,179.32,3.24]
[1753838900345,4.2147243,179.34,179.32,3.24]
[1753838900547,5.5765,179.35,179.32,3.24]
[1753838900848,4.21445448,179.34,179.32,3.24]
[1753838901042,5.5765,179.35,179.32,3.24]
[1753838901246,9.79086343,179.34,179.32,3.24]
[1753838901541,5.5769,179.34,179.32,3.24]
[1753838902741,0.04,179.36,179.33,3.24]
[1753838902942,0.04,179.34,179.28,3.24]
[1753838903148,6.98655461,179.35,179.28,3.24]
[1753838903149,4.2590487,179.33,179.28,3.24]
[1753838903350,9.79859526,179.32,179.28,8.8186]
[1753838903551,5.5777,179.32,179.29,3.24]
[1753838907252,5.5778,179.31,179.29,3.24]
[1753838907443,0.04,179.32,179.26,5.5792]
[1753838907649,0.04,179.32,179.19,377.76750591]
[1753838907650,6.99230356,179.31,179.24,3.24]
[1753838907850,4.26479765,179.3,179.24,3.24]
[1753838908049,5.5785,179.29,179.25,5.5794]
[1753838908247,2.76750591,179.33,179.26,3.24]
[1753838908448,4.22488461,179.32,179.26,3.24]
[1753838908645,4.22488461,179.31,179.26,3.24]
[1753838908850,4.22488461,179.3,179.27,5.5789]
[1753838909049,5.5778,179.31,179.28,3.24]
[1753838909549,5.5778,179.31,179.29,3.24]
[1753838910058,5.5774,179.33,179.3,3.24]
[1753838910256,4.22546815,179.32,179.3,3.24]
[1753838910456,2.76750591,179.34,179.3,3.24]
[1753838910655,9.80288296,179.33,179.3,3.24]
[1753838910850,4.22548296,179.32,179.3,3.24]
[1753838911157,4.22558115,179.31,179.3,3.24]
[1753838911356,0.04,179.3,179.24,3.24]
[1753838911554,2.80750591,179.3,179.24,3.24]
[1753838911755,4.65100379,179.34,179.24,3.24]
[1753838911756,2.80750591,179.28,179.24,3.24]
[1753838912857,4.22381121,179.27,179.24,3.24]
[1753838913058,2.80750591,179.28,179.24,3.24]
[1753838913258,4.30888002,179.27,179.25,3.24]
[1753838913460,2.76750591,179.3,179.25,3.24]
[1753838913662,4.30802732,179.29,179.25,3.24]